[Event "Titled Tuesday Blitz July 18 Late 2023"]
[White "Martinez Reyes, Pedro Ramon"]
[Black "Figorito, Nick"]
[WhiteFideId "3901807"]
[BlackFideId "30923689"]
[WhiteElo "2514"]
[BlackElo "2357"]
[Result "1-0"]
[Round "4"]
[TimeControl "180+2"]
[Date "2023.07.18"]
[WhiteClock "0:02:00"]
[BlackClock "0:00:38"]
[Board "121"]

1. c4 {[%clk 0:02:59]}  Nf6 {[%clk 0:02:59]} 2. Nc3 {[%clk 0:02:59]}  d5 {[%clk 0:02:59]} 3. cxd5 {[%clk 0:02:59]}  Nxd5 {[%clk 0:03:00]} 4. e4 {[%clk 0:02:59]}  Nxc3 {[%clk 0:02:58]} 5. dxc3 {[%clk 0:03:00]}  Qxd1+ {[%clk 0:02:58]} 6. Kxd1 {[%clk 0:03:00]}  c5 {[%clk 0:02:56]} 7. Be3 {[%clk 0:02:55]}  b6 {[%clk 0:02:56]} 8. Kc2 {[%clk 0:02:52]}  g6 {[%clk 0:02:48]} 9. h4 {[%clk 0:02:50]}  h5 {[%clk 0:02:48]} 10. Nf3 {[%clk 0:02:49]}  Bg7 {[%clk 0:02:48]} 11. Ng5 {[%clk 0:02:48]}  O-O {[%clk 0:02:47]} 12. Bc4 {[%clk 0:02:47]}  e6 {[%clk 0:02:45]} 13. f3 {[%clk 0:02:46]}  Ba6 {[%clk 0:02:44]} 14. Bxa6 {[%clk 0:02:43]}  Nxa6 {[%clk 0:02:45]} 15. a4 {[%clk 0:02:43]}  Nb8 {[%clk 0:02:35]} 16. Rhd1 {[%clk 0:02:42]}  Nc6 {[%clk 0:02:34]} 17. Rd6 {[%clk 0:02:41]}  Rac8 {[%clk 0:02:28]} 18. Rd7 {[%clk 0:02:34]}  Bf6 {[%clk 0:02:15]} 19. Rad1 {[%clk 0:02:32]}  Ra8 {[%clk 0:01:45]} 20. Rb7 {[%clk 0:02:26]}  Na5 {[%clk 0:01:40]} 21. Rc7 {[%clk 0:02:26]}  Be5 {[%clk 0:01:31]} 22. Rcd7 {[%clk 0:02:25]}  Nc4 {[%clk 0:01:28]} 23. Bc1 {[%clk 0:02:25]}  Bf6 {[%clk 0:01:25]} 24. b3 {[%clk 0:02:23]}  Na5 {[%clk 0:01:24]} 25. Bf4 {[%clk 0:02:14]}  Nc6 {[%clk 0:01:15]} 26. Bd6 {[%clk 0:02:11]}  Ne5 {[%clk 0:01:04]} 27. Bxe5 {[%clk 0:02:07]}  Bxe5 {[%clk 0:01:02]} 28. Rb7 {[%clk 0:02:05]}  Bf6 {[%clk 0:00:57]} 29. Rdd7 {[%clk 0:02:05]}  Bxg5 {[%clk 0:00:57]} 30. hxg5 {[%clk 0:02:06]}  Rfc8 {[%clk 0:00:52]} 31. Rxf7 {[%clk 0:02:04]}  Rcb8 {[%clk 0:00:44]} 32. Rg7+ {[%clk 0:02:03]}  Kf8 {[%clk 0:00:44]} 33. Rbf7+ {[%clk 0:02:02]}  Ke8 {[%clk 0:00:38]} 34. Rf6 {[%clk 0:02:00]} 1-0


[Site "https://www.chess.com"]

[Event "Titled Tuesday Blitz July 18 Late 2023"]
[White "Kostiukov, Alexandr"]
[Black "Graif, William"]
[WhiteFideId "14108100"]
[BlackFideId "2609835"]
[WhiteElo "2351"]
[BlackElo "2514"]
[Result "0-1"]
[Round "4"]
[TimeControl "180+2"]
[Date "2023.07.18"]
[WhiteClock "0:00:13"]
[BlackClock "0:00:06"]
[Board "122"]

1. g3 {[%clk 0:02:55]}  e5 {[%clk 0:02:54]} 2. Bg2 {[%clk 0:02:46]}  Nc6 {[%clk 0:02:53]} 3. c4 {[%clk 0:02:41]}  Bc5 {[%clk 0:02:47]} 4. Nc3 {[%clk 0:02:39]}  a6 {[%clk 0:02:43]} 5. e3 {[%clk 0:02:40]}  d6 {[%clk 0:02:38]} 6. Nge2 {[%clk 0:02:40]}  Ba7 {[%clk 0:02:33]} 7. d4 {[%clk 0:02:32]}  Bg4 {[%clk 0:02:26]} 8. h3 {[%clk 0:02:29]}  Bf5 {[%clk 0:02:06]} 9. O-O {[%clk 0:02:15]}  Qd7 {[%clk 0:01:50]} 10. Kh2 {[%clk 0:02:07]}  Nf6 {[%clk 0:01:28]} 11. dxe5 {[%clk 0:02:01]}  dxe5 {[%clk 0:01:06]} 12. Qxd7+ {[%clk 0:01:59]}  Nxd7 {[%clk 0:00:58]} 13. Rd1 {[%clk 0:01:54]}  O-O-O {[%clk 0:00:53]} 14. b3 {[%clk 0:01:53]}  Nb4 {[%clk 0:00:48]} 15. Nd5 {[%clk 0:01:44]}  Nxd5 {[%clk 0:00:44]} 16. Rxd5 {[%clk 0:01:43]}  Be6 {[%clk 0:00:40]} 17. Rd1 {[%clk 0:01:38]}  Nc5 {[%clk 0:00:38]} 18. Ba3 {[%clk 0:01:27]}  Nd3 {[%clk 0:00:32]} 19. Kg1 {[%clk 0:01:25]}  Rd7 {[%clk 0:00:25]} 20. Rd2 {[%clk 0:01:19]}  Rhd8 {[%clk 0:00:17]} 21. Rad1 {[%clk 0:01:18]}  Nxf2 {[%clk 0:00:14]} 22. Rxd7 {[%clk 0:01:17]}  Nxd1 {[%clk 0:00:14]} 23. Rxd8+ {[%clk 0:01:12]}  Kxd8 {[%clk 0:00:15]} 24. Bxb7 {[%clk 0:01:09]}  Nxe3 {[%clk 0:00:13]} 25. c5 {[%clk 0:01:02]}  Bc8 {[%clk 0:00:13]} 26. Bxc8 {[%clk 0:00:54]}  Kxc8 {[%clk 0:00:14]} 27. Kf2 {[%clk 0:00:55]}  Nd5 {[%clk 0:00:12]} 28. Kf3 {[%clk 0:00:54]}  f5 {[%clk 0:00:11]} 29. g4 {[%clk 0:00:54]}  e4+ {[%clk 0:00:11]} 30. Kg3 {[%clk 0:00:53]}  g6 {[%clk 0:00:11]} 31. h4 {[%clk 0:00:53]}  c6 {[%clk 0:00:10]} 32. gxf5 {[%clk 0:00:52]}  gxf5 {[%clk 0:00:10]} 33. Nd4 {[%clk 0:00:51]}  Bb8+ {[%clk 0:00:10]} 34. Kf2 {[%clk 0:00:50]}  f4 {[%clk 0:00:10]} 35. Nxc6 {[%clk 0:00:50]}  f3 {[%clk 0:00:09]} 36. Bc1 {[%clk 0:00:47]}  Bh2 {[%clk 0:00:06]} 37. Nd4 {[%clk 0:00:44]}  Nb4 {[%clk 0:00:05]} 38. Ke3 {[%clk 0:00:39]}  Nd3 {[%clk 0:00:06]} 39. Bd2 {[%clk 0:00:37]}  Bf4+ {[%clk 0:00:06]} 40. Kxe4 {[%clk 0:00:13]}  f2 {[%clk 0:00:06]} 0-1


[Site "https://www.chess.com"]

[Event "Titled Tuesday Blitz July 18 Late 2023"]
[White "Chor, Kevin"]
[Black "AndresDelgado77"]
[WhiteFideId "2090740"]
[WhiteElo "2503"]
[BlackElo "2348"]
[Result "1-0"]
[Round "4"]
[TimeControl "180+2"]
[Date "2023.07.18"]
[WhiteClock "0:00:29"]
[BlackClock "0:00:05"]
[Board "123"]

1. e4 {[%clk 0:02:59]}  e6 {[%clk 0:02:59]} 2. d4 {[%clk 0:02:59]}  d5 {[%clk 0:02:59]} 3. Nd2 {[%clk 0:02:57]}  Nc6 {[%clk 0:02:58]} 4. Ngf3 {[%clk 0:02:57]}  Nf6 {[%clk 0:02:57]} 5. e5 {[%clk 0:02:58]}  Nd7 {[%clk 0:02:57]} 6. Bd3 {[%clk 0:02:58]}  Nb4 {[%clk 0:02:56]} 7. Be2 {[%clk 0:02:58]}  f6 {[%clk 0:02:57]} 8. exf6 {[%clk 0:02:51]}  Qxf6 {[%clk 0:02:56]} 9. c3 {[%clk 0:02:41]}  Nc6 {[%clk 0:02:55]} 10. Nf1 {[%clk 0:02:40]}  e5 {[%clk 0:02:53]} 11. dxe5 {[%clk 0:02:36]}  Ndxe5 {[%clk 0:02:52]} 12. Qxd5 {[%clk 0:02:35]}  Be6 {[%clk 0:02:51]} 13. Qe4 {[%clk 0:02:30]}  O-O-O {[%clk 0:02:30]} 14. Ng3 {[%clk 0:02:19]}  Bd5 {[%clk 0:02:14]} 15. Qf5+ {[%clk 0:01:59]}  Qxf5 {[%clk 0:02:14]} 16. Nxf5 {[%clk 0:02:00]}  Nxf3+ {[%clk 0:02:09]} 17. Bxf3 {[%clk 0:02:00]}  Bxf3 {[%clk 0:02:07]} 18. gxf3 {[%clk 0:02:01]}  g6 {[%clk 0:02:07]} 19. Ne3 {[%clk 0:01:56]}  Bd6 {[%clk 0:01:45]} 20. Ke2 {[%clk 0:01:23]}  Rhf8 {[%clk 0:01:36]} 21. Nc4 {[%clk 0:01:21]}  Rde8+ {[%clk 0:00:49]} 22. Be3 {[%clk 0:01:21]}  Bf4 {[%clk 0:00:48]} 23. a4 {[%clk 0:01:05]}  a6 {[%clk 0:00:46]} 24. Rad1 {[%clk 0:01:01]}  b5 {[%clk 0:00:44]} 25. axb5 {[%clk 0:01:02]}  axb5 {[%clk 0:00:44]} 26. Na3 {[%clk 0:01:03]}  Ne5 {[%clk 0:00:38]} 27. Nxb5 {[%clk 0:00:50]}  Nc4 {[%clk 0:00:34]} 28. Rd3 {[%clk 0:00:42]}  Bxe3 {[%clk 0:00:26]} 29. fxe3 {[%clk 0:00:41]}  Ne5 {[%clk 0:00:27]} 30. Rd5 {[%clk 0:00:34]}  Nxf3 {[%clk 0:00:20]} 31. Rc5 {[%clk 0:00:34]}  Re7 {[%clk 0:00:20]} 32. Rf1 {[%clk 0:00:33]}  c6 {[%clk 0:00:10]} 33. Rxf3 {[%clk 0:00:30]}  Rxf3 {[%clk 0:00:10]} 34. Kxf3 {[%clk 0:00:31]}  Kd7 {[%clk 0:00:09]} 35. Nd4 {[%clk 0:00:31]}  Rf7+ {[%clk 0:00:08]} 36. Ke2 {[%clk 0:00:31]}  Rf6 {[%clk 0:00:09]} 37. Rxc6 {[%clk 0:00:29]}  Rxc6 {[%clk 0:00:07]} 38. Nxc6 {[%clk 0:00:29]}  Kxc6 {[%clk 0:00:05]} 39. Kf3 {[%clk 0:00:29]} 1-0


[Site "https://www.chess.com"]

[Event "Titled Tuesday Blitz July 18 Late 2023"]
[White "Kujawski, Adam"]
[Black "Barski, Radoslaw"]
[WhiteFideId "1100920"]
[BlackFideId "1131710"]
[WhiteElo "2343"]
[BlackElo "2496"]
[Result "0-1"]
[Round "4"]
[TimeControl "180+2"]
[Date "2023.07.18"]
[WhiteClock "0:00:00"]
[BlackClock "0:00:07"]
[Board "125"]

1. e4 {[%clk 0:03:00]}  e6 {[%clk 0:02:59]} 2. d4 {[%clk 0:03:00]}  d5 {[%clk 0:02:59]} 3. exd5 {[%clk 0:03:00]}  exd5 {[%clk 0:02:59]} 4. c4 {[%clk 0:03:00]}  Nf6 {[%clk 0:02:58]} 5. Nc3 {[%clk 0:03:00]}  Bb4 {[%clk 0:02:59]} 6. Nf3 {[%clk 0:03:00]}  O-O {[%clk 0:02:59]} 7. Bd3 {[%clk 0:02:59]}  dxc4 {[%clk 0:02:59]} 8. Bxc4 {[%clk 0:02:59]}  a6 {[%clk 0:03:00]} 9. O-O {[%clk 0:02:51]}  b5 {[%clk 0:02:59]} 10. Bb3 {[%clk 0:02:46]}  Bb7 {[%clk 0:03:00]} 11. Bg5 {[%clk 0:02:45]}  h6 {[%clk 0:02:59]} 12. Bh4 {[%clk 0:02:45]}  Nbd7 {[%clk 0:02:58]} 13. Ne5 {[%clk 0:02:00]}  Qc8 {[%clk 0:01:47]} 14. Nxd7 {[%clk 0:01:52]}  Nxd7 {[%clk 0:01:47]} 15. Nd5 {[%clk 0:01:48]}  Bd6 {[%clk 0:01:32]} 16. Ne7+ {[%clk 0:01:35]}  Bxe7 {[%clk 0:01:31]} 17. Bxe7 {[%clk 0:01:36]}  Re8 {[%clk 0:01:32]} 18. Re1 {[%clk 0:01:13]}  Nb6 {[%clk 0:01:21]} 19. d5 {[%clk 0:00:42]}  Qd7 {[%clk 0:01:18]} 20. d6 {[%clk 0:00:39]}  c5 {[%clk 0:00:46]} 21. Bc2 {[%clk 0:00:13]}  c4 {[%clk 0:00:43]} 22. Qh5 {[%clk 0:00:12]}  Qc6 {[%clk 0:00:31]} 23. f3 {[%clk 0:00:10]}  Nd5 {[%clk 0:00:32]} 24. Be4 {[%clk 0:00:09]}  Qc5+ {[%clk 0:00:30]} 25. Kh1 {[%clk 0:00:08]}  Rab8 {[%clk 0:00:21]} 26. Qf5 {[%clk 0:00:08]}  g6 {[%clk 0:00:20]} 27. Qh3 {[%clk 0:00:06]}  Nxe7 {[%clk 0:00:19]} 28. dxe7 {[%clk 0:00:05]}  Qxe7 {[%clk 0:00:19]} 29. Qxh6 {[%clk 0:00:05]}  Qf6 {[%clk 0:00:17]} 30. Bxb7 {[%clk 0:00:04]}  Qxb2 {[%clk 0:00:15]} 31. Rad1 {[%clk 0:00:02]}  c3 {[%clk 0:00:15]} 32. Rxe8+ {[%clk 0:00:01]}  Rxe8 {[%clk 0:00:14]} 33. Qc1 {[%clk 0:00:02]}  Qe2 {[%clk 0:00:12]} 34. Be4 {[%clk 0:00:01]}  Rc8 {[%clk 0:00:10]} 35. Re1 {[%clk 0:00:01]}  Qc4 {[%clk 0:00:07]} 36. h3 {[%clk 0:00:00]}  b4 {[%clk 0:00:07]} 0-1


[Site "https://www.chess.com"]

[Event "Titled Tuesday Blitz July 18 Late 2023"]
[White "Alain_Otero"]
[Black "Ansh M Shah"]
[BlackFideId "25033379"]
[WhiteElo "2337"]
[BlackElo "2494"]
[Result "0-1"]
[Round "4"]
[TimeControl "180+2"]
[Date "2023.07.18"]
[WhiteClock "0:00:00"]
[BlackClock "0:00:06"]
[Board "127"]

1. e4 {[%clk 0:03:00]}  g6 {[%clk 0:02:56]} 2. d4 {[%clk 0:03:00]}  Bg7 {[%clk 0:02:57]} 3. Nc3 {[%clk 0:03:00]}  d6 {[%clk 0:02:58]} 4. f4 {[%clk 0:03:00]}  Nf6 {[%clk 0:02:58]} 5. Nf3 {[%clk 0:02:59]}  O-O {[%clk 0:02:58]} 6. Bd3 {[%clk 0:02:58]}  c5 {[%clk 0:02:57]} 7. d5 {[%clk 0:02:56]}  a6 {[%clk 0:02:58]} 8. a4 {[%clk 0:02:54]}  e6 {[%clk 0:02:58]} 9. O-O {[%clk 0:02:29]}  exd5 {[%clk 0:02:57]} 10. exd5 {[%clk 0:02:29]}  Nbd7 {[%clk 0:02:57]} 11. a5 {[%clk 0:02:28]}  Qc7 {[%clk 0:02:55]} 12. Bd2 {[%clk 0:02:20]}  c4 {[%clk 0:02:41]} 13. Be2 {[%clk 0:02:19]}  Qc5+ {[%clk 0:02:42]} 14. Kh1 {[%clk 0:02:18]}  Nxd5 {[%clk 0:02:42]} 15. Nxd5 {[%clk 0:02:17]}  Qxd5 {[%clk 0:02:43]} 16. Bc3 {[%clk 0:02:14]}  Qc5 {[%clk 0:02:15]} 17. Ra4 {[%clk 0:02:01]}  d5 {[%clk 0:02:11]} 18. Bb4 {[%clk 0:02:00]}  Qc6 {[%clk 0:02:01]} 19. Bxf8 {[%clk 0:01:55]}  Nxf8 {[%clk 0:01:49]} 20. c3 {[%clk 0:01:45]}  Ne6 {[%clk 0:01:34]} 21. g3 {[%clk 0:01:45]}  Nc5 {[%clk 0:01:34]} 22. Rb4 {[%clk 0:01:39]}  Nb3 {[%clk 0:01:26]} 23. Ne5 {[%clk 0:01:26]}  Qc5 {[%clk 0:01:15]} 24. Bf3 {[%clk 0:01:20]}  Bh3 {[%clk 0:01:07]} 25. Re1 {[%clk 0:01:05]}  Rd8 {[%clk 0:00:50]} 26. Rxb7 {[%clk 0:00:42]}  Nxa5 {[%clk 0:00:46]} 27. Rb4 {[%clk 0:00:15]}  d4 {[%clk 0:00:41]} 28. Re2 {[%clk 0:00:02]}  d3 {[%clk 0:00:19]} 29. Re1 {[%clk 0:00:01]}  Qf2 {[%clk 0:00:11]} 30. Re2 {[%clk 0:00:01]}  Qc5 {[%clk 0:00:09]} 31. Rd2 {[%clk 0:00:01]}  Bxe5 {[%clk 0:00:07]} 32. fxe5 {[%clk 0:00:01]}  Qxe5 {[%clk 0:00:08]} 33. Qg1 {[%clk 0:00:01]}  Qg5 {[%clk 0:00:07]} 34. Rd1 {[%clk 0:00:00]}  Qf5 {[%clk 0:00:06]} 0-1


[Site "https://www.chess.com"]

[Event "Titled Tuesday Blitz July 18 Late 2023"]
[White "Garmendiarov"]
[Black "Kaplan, Avi Harrison"]
[BlackFideId "30934559"]
[WhiteElo "2306"]
[BlackElo "2494"]
[Result "0-1"]
[Round "4"]
[TimeControl "180+2"]
[Date "2023.07.18"]
[WhiteClock "0:00:01"]
[BlackClock "0:00:41"]
[Board "128"]

1. e4 {[%clk 0:03:00]}  e5 {[%clk 0:02:57]} 2. Nf3 {[%clk 0:03:00]}  Nc6 {[%clk 0:02:57]} 3. Bb5 {[%clk 0:03:01]}  Nd4 {[%clk 0:02:50]} 4. Nxd4 {[%clk 0:03:00]}  exd4 {[%clk 0:02:49]} 5. O-O {[%clk 0:02:59]}  Qg5 {[%clk 0:02:37]} 6. Bc4 {[%clk 0:02:28]}  d6 {[%clk 0:02:24]} 7. d3 {[%clk 0:02:25]}  Qh4 {[%clk 0:02:07]} 8. Nd2 {[%clk 0:01:46]}  Nf6 {[%clk 0:02:00]} 9. Nf3 {[%clk 0:01:43]}  Qh5 {[%clk 0:01:54]} 10. Nxd4 {[%clk 0:01:37]}  Bg4 {[%clk 0:01:48]} 11. f3 {[%clk 0:01:32]}  Bd7 {[%clk 0:01:46]} 12. Be3 {[%clk 0:01:23]}  Be7 {[%clk 0:01:43]} 13. f4 {[%clk 0:01:00]}  Bg4 {[%clk 0:01:19]} 14. Qe1 {[%clk 0:00:59]}  O-O-O {[%clk 0:01:18]} 15. f5 {[%clk 0:00:29]}  d5 {[%clk 0:01:08]} 16. Bb3 {[%clk 0:00:18]}  dxe4 {[%clk 0:01:05]} 17. dxe4 {[%clk 0:00:18]}  Bc5 {[%clk 0:00:59]} 18. c3 {[%clk 0:00:17]}  Rhe8 {[%clk 0:00:55]} 19. h3 {[%clk 0:00:13]}  Rxe4 {[%clk 0:00:56]} 20. hxg4 {[%clk 0:00:12]}  Nxg4 {[%clk 0:00:57]} 21. Qg3 {[%clk 0:00:09]}  Rxe3 {[%clk 0:00:54]} 22. Rf3 {[%clk 0:00:08]}  Rxd4 {[%clk 0:00:47]} 23. cxd4 {[%clk 0:00:05]}  Bxd4 {[%clk 0:00:48]} 24. Rd1 {[%clk 0:00:03]}  Rxf3+ {[%clk 0:00:41]} 25. Rxd4 {[%clk 0:00:01]}  Qh1+ {[%clk 0:00:41]} 26. Kxh1 {[%clk 0:00:01]}  Rf1# {[%clk 0:00:41]} 0-1


[Site "https://www.chess.com"]

[Event "Titled Tuesday Blitz July 18 Late 2023"]
[White "Novikov, Evgenij"]
[Black "Fernandez Siles, Luis"]
[WhiteFideId "4125380"]
[BlackFideId "2209420"]
[WhiteElo "2491"]
[BlackElo "2303"]
[Result "0-1"]
[Round "4"]
[TimeControl "180+2"]
[Date "2023.07.18"]
[WhiteClock "0:00:00"]
[BlackClock "0:00:06"]
[Board "129"]

1. d4 {[%clk 0:03:00]}  Nf6 {[%clk 0:02:59]} 2. c4 {[%clk 0:03:00]}  g6 {[%clk 0:03:00]} 3. Nc3 {[%clk 0:03:00]}  Bg7 {[%clk 0:03:00]} 4. e4 {[%clk 0:03:00]}  d6 {[%clk 0:03:01]} 5. Be2 {[%clk 0:03:00]}  O-O {[%clk 0:03:01]} 6. Nf3 {[%clk 0:03:00]}  c5 {[%clk 0:03:01]} 7. O-O {[%clk 0:02:58]}  Nc6 {[%clk 0:03:01]} 8. d5 {[%clk 0:02:58]}  Na5 {[%clk 0:03:01]} 9. Nd2 {[%clk 0:02:34]}  e5 {[%clk 0:03:01]} 10. a3 {[%clk 0:02:23]}  b6 {[%clk 0:03:00]} 11. b4 {[%clk 0:02:22]}  Nb7 {[%clk 0:03:00]} 12. Re1 {[%clk 0:02:00]}  Nd7 {[%clk 0:02:57]} 13. Nf1 {[%clk 0:01:59]}  f5 {[%clk 0:02:56]} 14. exf5 {[%clk 0:01:58]}  gxf5 {[%clk 0:02:55]} 15. Ra2 {[%clk 0:01:47]}  Kh8 {[%clk 0:02:41]} 16. Ng3 {[%clk 0:01:43]}  Nf6 {[%clk 0:02:30]} 17. f4 {[%clk 0:01:37]}  exf4 {[%clk 0:02:23]} 18. Bxf4 {[%clk 0:01:36]}  Ng4 {[%clk 0:02:19]} 19. Bxg4 {[%clk 0:01:13]}  fxg4 {[%clk 0:02:19]} 20. Nce2 {[%clk 0:01:05]}  Bd7 {[%clk 0:02:09]} 21. bxc5 {[%clk 0:00:58]}  dxc5 {[%clk 0:02:02]} 22. Nh5 {[%clk 0:00:52]}  Rxf4 {[%clk 0:01:37]} 23. Nexf4 {[%clk 0:00:52]}  Bd4+ {[%clk 0:01:36]} 24. Kh1 {[%clk 0:00:52]}  Nd6 {[%clk 0:01:34]} 25. Ne6 {[%clk 0:00:45]}  Bxe6 {[%clk 0:01:14]} 26. Rxe6 {[%clk 0:00:46]}  Qg5 {[%clk 0:01:08]} 27. Ng3 {[%clk 0:00:34]}  Nf5 {[%clk 0:00:44]} 28. Nxf5 {[%clk 0:00:29]}  Qxf5 {[%clk 0:00:45]} 29. Rae2 {[%clk 0:00:27]}  Rf8 {[%clk 0:00:32]} 30. Re8 {[%clk 0:00:26]}  Kg7 {[%clk 0:00:30]} 31. Rxf8 {[%clk 0:00:25]}  Kxf8 {[%clk 0:00:29]} 32. Qe1 {[%clk 0:00:22]}  Qf7 {[%clk 0:00:25]} 33. Re4 {[%clk 0:00:17]}  h5 {[%clk 0:00:24]} 34. Qe2 {[%clk 0:00:16]}  Qf6 {[%clk 0:00:15]} 35. g3 {[%clk 0:00:15]}  Qf3+ {[%clk 0:00:13]} 36. Qxf3+ {[%clk 0:00:15]}  gxf3 {[%clk 0:00:13]} 37. Rf4+ {[%clk 0:00:16]}  Ke7 {[%clk 0:00:12]} 38. Rxf3 {[%clk 0:00:16]}  Kd6 {[%clk 0:00:12]} 39. Kg2 {[%clk 0:00:15]}  Ke5 {[%clk 0:00:10]} 40. h3 {[%clk 0:00:14]}  b5 {[%clk 0:00:10]} 41. cxb5 {[%clk 0:00:13]}  Kxd5 {[%clk 0:00:11]} 42. Rf5+ {[%clk 0:00:13]}  Ke4 {[%clk 0:00:10]} 43. Rxh5 {[%clk 0:00:12]}  c4 {[%clk 0:00:11]} 44. Rh7 {[%clk 0:00:10]}  c3 {[%clk 0:00:11]} 45. Rc7 {[%clk 0:00:09]}  Kd3 {[%clk 0:00:12]} 46. Kf3 {[%clk 0:00:08]}  c2 {[%clk 0:00:12]} 47. a4 {[%clk 0:00:07]}  Bc3 {[%clk 0:00:12]} 48. Rd7+ {[%clk 0:00:02]}  Kc4 {[%clk 0:00:12]} 49. Rc7+ {[%clk 0:00:02]}  Kb3 {[%clk 0:00:12]} 50. a5 {[%clk 0:00:02]}  c1=Q {[%clk 0:00:12]} 51. b6 {[%clk 0:00:03]}  Qd1+ {[%clk 0:00:11]} 52. Ke4 {[%clk 0:00:02]}  Qd4+ {[%clk 0:00:11]} 53. Kf5 {[%clk 0:00:02]}  Qe5+ {[%clk 0:00:11]} 54. Kg6 {[%clk 0:00:01]}  axb6 {[%clk 0:00:11]} 55. axb6 {[%clk 0:00:02]}  Qd6+ {[%clk 0:00:11]} 56. Kh5 {[%clk 0:00:02]}  Qxb6 {[%clk 0:00:11]} 57. Rh7 {[%clk 0:00:03]}  Qc5+ {[%clk 0:00:10]} 58. Kg4 {[%clk 0:00:03]}  Qd4+ {[%clk 0:00:10]} 59. Kh5 {[%clk 0:00:03]}  Qe5+ {[%clk 0:00:10]} 60. Kg6 {[%clk 0:00:03]}  Qe6+ {[%clk 0:00:09]} 61. Kh5 {[%clk 0:00:03]}  Qf5+ {[%clk 0:00:09]} 62. Kh6 {[%clk 0:00:03]}  Qf6+ {[%clk 0:00:09]} 63. Kh5 {[%clk 0:00:03]}  Qf5+ {[%clk 0:00:09]} 64. Kh6 {[%clk 0:00:03]}  Bd2+ {[%clk 0:00:09]} 65. Kg7 {[%clk 0:00:03]}  Qg5+ {[%clk 0:00:09]} 66. Kf7 {[%clk 0:00:02]}  Qf5+ {[%clk 0:00:09]} 67. Kg7 {[%clk 0:00:03]}  Qg5+ {[%clk 0:00:09]} 68. Kf7 {[%clk 0:00:03]}  Qxg3 {[%clk 0:00:10]} 69. h4 {[%clk 0:00:01]}  Qf4+ {[%clk 0:00:09]} 70. Kg8 {[%clk 0:00:01]}  Qb8+ {[%clk 0:00:08]} 71. Kf7 {[%clk 0:00:01]}  Qc7+ {[%clk 0:00:09]} 72. Kg6 {[%clk 0:00:02]}  Qd6+ {[%clk 0:00:09]} 73. Kf7 {[%clk 0:00:02]}  Qd7+ {[%clk 0:00:09]} 74. Kg6 {[%clk 0:00:02]}  Qe6+ {[%clk 0:00:09]} 75. Kg7 {[%clk 0:00:02]}  Bc3+ {[%clk 0:00:09]} 76. Kf8 {[%clk 0:00:03]}  Qc8+ {[%clk 0:00:08]} 77. Kf7 {[%clk 0:00:03]}  Qd7+ {[%clk 0:00:09]} 78. Kg6 {[%clk 0:00:03]}  Qe6+ {[%clk 0:00:09]} 79. Kh5 {[%clk 0:00:02]}  Qf5+ {[%clk 0:00:09]} 80. Kh6 {[%clk 0:00:03]}  Bd2+ {[%clk 0:00:08]} 81. Kg7 {[%clk 0:00:03]}  Qd7+ {[%clk 0:00:07]} 82. Kg6 {[%clk 0:00:03]}  Qe6+ {[%clk 0:00:07]} 83. Kg7 {[%clk 0:00:03]}  Bc3+ {[%clk 0:00:08]} 84. Kf8 {[%clk 0:00:03]}  Qf5+ {[%clk 0:00:07]} 85. Rf7 {[%clk 0:00:03]}  Qc8+ {[%clk 0:00:07]} 86. Ke7 {[%clk 0:00:03]}  Qc5+ {[%clk 0:00:07]} 87. Ke6 {[%clk 0:00:03]}  Qc4+ {[%clk 0:00:07]} 88. Ke7 {[%clk 0:00:01]}  Qxh4+ {[%clk 0:00:08]} 89. Ke6 {[%clk 0:00:00]}  Kc4 {[%clk 0:00:06]} 0-1


[Site "https://www.chess.com"]

[Event "Titled Tuesday Blitz July 18 Late 2023"]
[White "Santos, Rafael Ventura Dos"]
[Black "vishwa_vijeta"]
[WhiteFideId "2122227"]
[WhiteElo "2294"]
[BlackElo "2487"]
[Result "0-1"]
[Round "4"]
[TimeControl "180+2"]
[Date "2023.07.18"]
[WhiteClock "0:00:00"]
[BlackClock "0:01:23"]
[Board "130"]

1. e4 {[%clk 0:03:00]}  c5 {[%clk 0:03:00]} 2. c4 {[%clk 0:03:00]}  Nc6 {[%clk 0:02:58]} 3. Ne2 {[%clk 0:03:00]}  Nf6 {[%clk 0:02:55]} 4. Nbc3 {[%clk 0:02:59]}  e5 {[%clk 0:02:46]} 5. d3 {[%clk 0:02:58]}  d6 {[%clk 0:02:45]} 6. g3 {[%clk 0:02:57]}  Be7 {[%clk 0:02:46]} 7. Bg2 {[%clk 0:02:54]}  O-O {[%clk 0:02:46]} 8. O-O {[%clk 0:02:54]}  Nd4 {[%clk 0:02:46]} 9. h3 {[%clk 0:02:51]}  Bd7 {[%clk 0:02:46]} 10. f4 {[%clk 0:02:50]}  b6 {[%clk 0:02:41]} 11. f5 {[%clk 0:02:42]}  Ne8 {[%clk 0:02:38]} 12. h4 {[%clk 0:02:38]}  Nc7 {[%clk 0:02:28]} 13. Nxd4 {[%clk 0:02:02]}  cxd4 {[%clk 0:02:22]} 14. Ne2 {[%clk 0:02:02]}  b5 {[%clk 0:02:23]} 15. b3 {[%clk 0:01:53]}  a5 {[%clk 0:02:20]} 16. Bd2 {[%clk 0:01:54]}  a4 {[%clk 0:02:20]} 17. Qe1 {[%clk 0:01:49]}  Na6 {[%clk 0:02:07]} 18. Kh2 {[%clk 0:01:27]}  Nc5 {[%clk 0:02:06]} 19. Bh3 {[%clk 0:00:59]}  Nxd3 {[%clk 0:02:04]} 20. Qb1 {[%clk 0:00:54]}  bxc4 {[%clk 0:01:53]} 21. bxc4 {[%clk 0:00:53]}  Nc5 {[%clk 0:01:53]} 22. Ng1 {[%clk 0:00:49]}  Rb8 {[%clk 0:01:51]} 23. Qe1 {[%clk 0:00:42]}  Bc6 {[%clk 0:01:48]} 24. f6 {[%clk 0:00:38]}  Bxf6 {[%clk 0:01:40]} 25. Rxf6 {[%clk 0:00:38]}  gxf6 {[%clk 0:01:33]} 26. Bh6 {[%clk 0:00:18]}  Rb2+ {[%clk 0:01:33]} 27. Ne2 {[%clk 0:00:18]}  d3 {[%clk 0:01:32]} 28. Kh1 {[%clk 0:00:12]}  Bxe4+ {[%clk 0:01:31]} 29. Kg1 {[%clk 0:00:11]}  Rxe2 {[%clk 0:01:29]} 30. Qc1 {[%clk 0:00:11]}  f5 {[%clk 0:01:26]} 31. Bg5 {[%clk 0:00:08]}  f6 {[%clk 0:01:26]} 32. Bh6 {[%clk 0:00:09]}  Qe7 {[%clk 0:01:26]} 33. Qa3 {[%clk 0:00:08]}  d2 {[%clk 0:01:24]} 34. Bf1 {[%clk 0:00:00]}  Re1 {[%clk 0:01:23]} 0-1


[Site "https://www.chess.com"]